bitfinex/quotes_SOLUSD_20250226
["timestamp","ask_amount","ask_price","bid_price","bid_amount"]
[1740587719122,21.26398405,138.7,138.69,0.063]
[1740587719793,19.37054886,138.7,138.69,0.063]
[1740587720221,20.7209,138.7,138.69,0.063]
[1740587720433,0.7209,138.7,138.69,0.063]
[1740587720723,20.7209,138.7,138.69,0.063]
[1740587721423,20.0,138.7,138.69,0.063]
[1740587721725,20.7209,138.7,138.69,0.063]
[1740587722524,0.7208,138.72,138.69,0.063]
[1740587723032,82.9,138.75,138.71,0.14216157]
[1740587723203,82.93,138.77,138.72,7.74]
[1740587723524,0.03,138.77,138.73,0.56864628]
[1740587723822,82.93,138.77,138.72,7.74]
[1740587724306,0.03,138.77,138.73,0.14216157]
[1740587725121,0.03,138.77,138.73,0.56864628]
[1740587725499,0.03,138.77,138.73,82.96864628]
[1740587725699,0.03,138.77,138.75,0.14216157]
[1740587725905,0.03,138.77,138.76,0.42648471]
[1740587726299,0.03,138.77,138.76,19.21829514]
[1740587726630,0.03,138.77,138.69,222.9360906]
[1740587726850,82.93,138.77,138.7,7.2093]
[1740587727138,82.93,138.77,138.71,0.14216157]
[1740587727348,82.93,138.77,138.69,7.2731]
[1740587727554,20.0,138.73,138.69,0.063]
[1740587727848,103.6208,138.73,138.69,0.063]
[1740587729346,20.54244623,138.72,138.69,0.063]
[1740587729838,18.64964886,138.72,138.69,0.063]
[1740587730718,18.64964886,138.7,138.69,0.063]
[1740587730937,19.37054886,138.7,138.69,0.063]
[1740587731831,21.26397961,138.7,138.69,0.063]
[1740587732031,0.7209,138.7,138.69,0.063]
[1740587732546,1.89303945,138.72,138.69,0.063]
[1740587732736,39.07613357,138.71,138.69,0.063]
[1740587732958,0.7209,138.7,138.69,0.063]
[1740587733244,3.04038634,138.7,138.69,0.063]
[1740587734144,2.61390163,138.7,138.69,0.063]
[1740587734360,0.7209,138.7,138.69,0.063]
[1740587735448,0.7208,138.73,138.69,0.063]
[1740587735626,82.9,138.72,138.69,0.063]
[1740587736457,83.6208,138.72,138.69,0.063]
[1740587737653,82.9,138.72,138.69,0.063]
[1740587737980,83.6208,138.72,138.69,0.063]
[1740587738461,82.9,138.72,138.69,0.063]
[1740587738629,20.0,138.7,138.69,0.063]
[1740587739751,20.7209,138.7,138.69,0.063]
[1740587740051,0.42648471,138.68,138.66,0.063]
[1740587740255,1.89380789,138.67,138.66,0.063]
[1740587740852,20.96994146,138.67,138.66,0.063]
[1740587741024,25.29513357,138.66,138.62,0.063]
[1740587741232,1.894186,138.65,138.62,0.063]
[1740587741645,0.7213,138.63,138.62,0.063]
[1740587741852,0.14216157,138.62,138.55,0.063]
[1740587742048,19.07613357,138.6,138.55,0.063]
[1740587742251,1.89486055,138.59,138.55,0.063]
[1740587742456,6.20611014,138.63,138.55,0.063]
[1740587742457,2.5246,138.63,138.55,0.063]
[1740587742772,0.7213,138.63,138.57,0.14216157]
[1740587742936,82.9,138.62,138.57,0.14216157]
[1740587743131,82.9,138.62,138.55,7.2805]
[1740587743335,20.54356435,138.61,138.55,0.063]
[1740587743531,18.64964886,138.59,138.55,0.063]
[1740587743849,83.6216,138.58,138.55,0.063]
[1740587744538,84.79486646,138.57,138.55,0.063]
[1740587744754,101.54964886,138.56,138.55,0.063]
[1740587744963,18.64964886,138.56,138.55,0.063]
[1740587745135,19.07613357,138.56,138.55,0.063]
[1740587745665,19.79783357,138.56,138.55,0.063]
[1740587745862,19.93999514,138.56,138.55,0.063]
[1740587746036,19.93999514,138.56,138.55,0.0001]
[1740587747139,21.93999514,138.56,138.55,0.0001]
[1740587747747,38.79181043,138.53,138.52,0.03]
[1740587748066,48.38783601,138.53,138.52,0.03]
[1740587748364,0.14216157,138.51,138.5,0.6810562]
[1740587748659,20.54596703,138.51,138.5,0.6810562]
[1740587749172,21.26786703,138.51,138.5,0.6810562]
[1740587749773,21.83651331,138.51,138.5,0.6810562]
[1740587749940,22.83651331,138.51,138.5,5.62e-05]
[1740587750455,23.83651331,138.51,138.5,5.62e-05]
[1740587751480,18.64964886,138.46,138.44,0.03]
[1740587751771,1.89682787,138.45,138.44,0.03]
[1740587752641,2.61902787,138.45,138.44,0.03]
[1740587752845,21.83732301,138.45,138.44,0.03]
[1740587753979,21.69516144,138.45,138.44,0.0001]
[1740587754263,21.26867673,138.45,138.44,0.0001]
[1740587755158,21.83732301,138.45,138.44,0.0001]
[1740587756473,20.42648471,138.41,138.38,0.03]
[1740587756671,20.7225,138.39,138.38,0.03]
[1740587756972,20.7225,138.39,138.33,1.2727]
[1740587757177,20.7225,138.39,138.31,7.2301]
[1740587757678,20.0,138.38,138.31,7.2301]
[1740587757986,0.7225,138.4,138.32,0.14216157]
[1740587758272,83.6225,138.4,138.32,0.14216157]
[1740587758471,82.9,138.4,138.32,0.56864628]
[1740587758677,82.9,138.4,138.33,7.229]
[1740587759053,83.6225,138.4,138.33,7.229]
[1740587759256,82.9,138.39,138.31,7.2301]
[1740587759764,1.89757016,138.38,138.31,7.2301]
[1740587760170,82.9,138.37,138.31,7.2301]
[1740587760376,82.9,138.37,138.3,7.2604]
[1740587760568,82.9,138.39,138.31,18.64964886]
[1740587760880,83.6224,138.42,138.35,0.14216157]
[1740587761060,82.9,138.42,138.35,6.23076157]
[1740587761268,0.7222,138.46,138.39,0.14216157]
[1740587761586,82.9,138.47,138.41,0.14216157]
[1740587762778,83.6221,138.47,138.41,0.14216157]
[1740587762946,82.9,138.47,138.41,7.36696157]
[1740587763350,82.9,138.51,138.45,0.14216157]
[1740587763573,83.6218,138.54,138.44,7.64]
[1740587763784,20.0,138.47,138.41,0.14216157]
[1740587764086,84.77109347,138.49,138.41,0.14216157]
[1740587764460,82.87487446,138.49,138.41,0.14216157]
[1740587764859,0.7221,138.48,138.41,7.36686157]
[1740587765060,82.87487446,138.49,138.41,7.36686157]
[1740587765290,82.87487446,138.48,138.41,7.36686157]
[1740587765464,82.87487446,138.48,138.43,0.14216157]
[1740587765668,82.87487446,138.53,138.45,0.14216157]
[1740587765860,83.59677446,138.52,138.45,0.14216157]
[1740587766267,83.59677446,138.52,138.47,0.14216157]
[1740587766268,82.87487446,138.52,138.47,0.14216157]
[1740587766476,82.87487446,138.55,138.47,0.56864628]
[1740587766873,83.59657446,138.55,138.48,7.2212]
[1740587767074,87.29607776,138.55,138.46,1.6339]
[1740587767277,82.87487446,138.54,138.46,1.6339]
[1740587767468,82.87487446,138.54,138.47,0.56864628]
[1740587767778,82.87487446,138.54,138.5,0.14216157]
[1740587768008,0.063,138.56,138.5,0.14216157]
[1740587768009,0.063,138.56,138.52,0.14216157]
[1740587768184,0.063,138.56,138.54,0.14216157]
[1740587768495,0.063,138.56,138.55,20.80899514]
[1740587768673,0.063,138.56,138.55,1.73286157]
[1740587768862,0.063,138.56,138.55,1.5907]
[1740587769493,0.063,138.56,138.54,7.64]
[1740587769656,0.063,138.56,138.52,0.14216157]
[1740587769857,0.063,138.56,138.55,0.14216157]
[1740587770993,0.063,138.56,138.55,26.00941043]
[1740587771186,83.59597446,138.66,138.59,0.14216157]
[1740587772188,83.59597446,138.66,138.59,7.35746157]
[1740587772382,0.721,138.68,138.61,0.14216157]
[1740587772592,82.87487446,138.69,138.63,0.14216157]
[1740587772991,0.063,138.7,138.65,0.14216157]
[1740587773660,0.063,138.7,138.65,18.79181043]
[1740587773989,0.063,138.7,138.69,19.21829514]
[1740587774370,0.063,138.7,138.69,26.42859514]
[1740587775073,0.063,138.7,138.69,7.77894628]
[1740587775515,0.063,138.7,138.69,7.35246157]
[1740587776478,0.063,138.7,138.69,0.14216157]
[1740587776681,0.063,138.7,138.68,7.2107]
[1740587776884,0.063,138.7,138.67,0.14216157]
[1740587777080,0.063,138.7,138.68,0.14216157]
[1740587777285,0.063,138.7,138.68,0.42648471]
[1740587778298,0.063,138.7,138.68,7.35266157]
[1740587778496,0.063,138.7,138.69,20.0]
[1740587778672,0.063,138.7,138.67,0.14216157]
[1740587778878,0.063,138.7,138.66,0.14216157]
[1740587779507,0.063,138.7,138.64,89.6128]
[1740587779798,0.063,138.7,138.65,0.14216157]
[1740587780294,0.063,138.7,138.64,82.4]
[1740587780507,82.93787446,138.7,138.62,91.1518]
[1740587780670,82.87487446,138.69,138.6,140.3862]
[1740587781003,82.87487446,138.69,138.61,0.14216157]
[1740587781780,82.87487446,138.69,138.6,141.3]
[1740587782178,82.87487446,138.68,138.6,141.3]
[1740587782386,83.59587446,138.68,138.6,141.3]
[1740587782705,87.29203392,138.68,138.6,141.3]
[1740587783083,85.39857446,138.68,138.6,141.3]
[1740587783807,87.29225923,138.68,138.6,141.3]
[1740587784102,83.59587446,138.68,138.61,0.56864628]
[1740587785387,83.59587446,138.68,138.63,0.14216157]
[1740587785601,83.59587446,138.68,138.61,0.56864628]
[1740587785602,83.59587446,138.68,138.61,7.2143]
[1740587785898,83.59587446,138.68,138.61,0.14216157]
[1740587787794,0.7211,138.66,138.6,141.3]
[1740587788002,83.59597446,138.66,138.6,141.3]
[1740587788387,83.59597446,138.66,138.6,133.72]
[1740587788585,85.39887446,138.66,138.6,133.72]
[1740587788787,83.59597446,138.66,138.6,133.72]
[1740587789108,83.59597446,138.66,138.56,0.03]
[1740587789109,1.89372091,138.65,138.56,0.03]
[1740587789290,82.87487446,138.64,138.56,0.03]
[1740587789678,82.87487446,138.64,138.56,0.45648471]
[1740587789884,0.7213,138.63,138.56,0.03]
[1740587790193,82.87487446,138.62,138.56,0.03]
[1740587790377,82.87487446,138.61,138.56,0.03]
[1740587791311,103.41893967,138.6,138.56,0.03]
[1740587791885,0.7215,138.59,138.56,0.03]
[1740587792099,82.87487446,138.58,138.56,0.03]
[1740587792902,103.41946585,138.57,138.56,0.03]
[1740587793203,0.28432314,138.56,138.47,82.4]
[1740587793384,20.54514813,138.55,138.46,7.54]
[1740587794006,0.7217,138.55,138.47,0.56864628]
[1740587794186,0.7217,138.55,138.46,14.7621]
[1740587794399,0.7217,138.55,138.47,0.42648471]
[1740587794589,83.59657446,138.56,138.47,0.14216157]
[1740587794783,83.59657446,138.56,138.48,0.14216157]
[1740587794784,82.87487446,138.55,138.48,0.14216157]
[1740587794981,82.87487446,138.55,138.48,0.28432314]
[1740587795209,82.87487446,138.54,138.48,0.28432314]
[1740587795391,82.87487446,138.54,138.46,97.1621]
[1740587796013,87.29677503,138.53,138.44,82.4]
[1740587796185,101.80884646,138.52,138.42,133.67]
[1740587796387,1.89594373,138.51,138.42,133.67]
[1740587796708,101.52452332,138.52,138.43,0.42648471]
[1740587797013,82.87487446,138.52,138.43,0.42648471]
[1740587797183,82.87487446,138.52,138.44,0.14216157]
[1740587797583,84.77035898,138.52,138.43,0.42648471]
[1740587797884,0.7219,138.51,138.44,7.2233]
[1740587798089,82.87487446,138.52,138.46,0.14216157]
[1740587798397,83.59677446,138.52,138.45,7.96648471]
[1740587798593,83.59677446,138.52,138.45,7.54]
[1740587800411,85.40147446,138.52,138.45,7.54]
[1740587800591,84.77058358,138.51,138.42,133.67]
[1740587800798,84.77058358,138.51,138.43,0.42648471]
[1740587802129,6.2031,138.49,138.42,133.67]
[1740587802417,18.64964886,138.47,138.42,0.03]
[1740587802613,1.89660541,138.46,138.42,0.03]
[1740587802804,82.87487446,138.45,138.42,0.03]
[1740587803999,82.87487446,138.45,138.43,0.03]
[1740587804797,82.87487446,138.44,138.43,0.03]
[1740587804999,22.61855967,138.45,138.43,0.03]
[1740587805314,82.9,138.47,138.43,0.03]
[1740587805714,1.89631399,138.47,138.43,0.03]
[1740587805913,20.7223,138.44,138.43,0.03]
[1740587806103,41.26892808,138.44,138.43,0.03]
[1740587806302,41.69541279,138.44,138.43,0.03]
[1740587807723,18.64964886,138.42,138.34,133.74]
[1740587807904,20.54684741,138.42,138.34,133.74]
[1740587808919,0.7224,138.41,138.34,133.74]
[1740587811602,0.7224,138.41,138.34,140.9685]
[1740587812422,82.9,138.4,138.34,140.9685]
[1740587812599,82.9,138.39,138.32,7.2294]
[1740587812808,82.9,138.38,138.32,7.2294]
[1740587813018,82.9,138.37,138.32,7.2294]
[1740587813222,82.9,138.36,138.3,0.03]
[1740587813519,82.9,138.35,138.3,0.03]
[1740587813724,82.9,138.35,138.31,0.28432314]
[1740587814301,82.9,138.34,138.3,0.03]
[1740587814498,82.9,138.33,138.3,0.03]
[1740587814809,82.9,138.32,138.3,0.03]
[1740587815013,82.9,138.31,138.3,0.03]
[1740587815204,41.27050725,138.35,138.3,0.03]
[1740587815406,41.27050725,138.35,138.31,0.03]
[1740587815407,101.54964886,138.34,138.31,0.03]
[1740587815631,83.6229,138.33,138.31,0.03]
[1740587815919,82.9,138.33,138.31,0.03]
[1740587817430,82.9,138.37,138.31,0.03]
[1740587817634,83.6227,138.36,138.31,20.03]
[1740587817832,82.9,138.36,138.31,0.31432314]
[1740587818038,82.9,138.38,138.33,0.42648471]
[1740587818536,82.9,138.38,138.33,20.42648471]
[1740587818908,89.0421,138.41,138.35,20.0]
[1740587819219,82.9,138.41,138.36,0.42648471]
[1740587819517,82.9,138.41,138.37,27.2268]
[1740587819899,82.9,138.44,138.38,0.42648471]
[1740587820418,82.9,138.44,138.39,0.14216157]
[1740587821028,82.9,138.44,138.38,0.42648471]
[1740587821238,82.9,138.44,138.37,27.2268]
[1740587821408,82.9,138.43,138.35,7.52]
[1740587821607,82.9,138.45,138.35,14.7478]
[1740587821927,82.9,138.45,138.37,0.42648471]
[1740587822122,20.54634341,138.44,138.35,14.7478]
[1740587822440,82.9,138.43,138.35,7.52]
[1740587822738,82.9,138.43,138.34,7.2284]
[1740587822739,84.7971829,138.42,138.33,7.229]
[1740587822915,101.54964886,138.41,138.32,7.2294]
[1740587823115,82.9,138.4,138.31,14.7999]
[1740587823308,18.64964886,138.39,138.31,14.7999]
[1740587823516,82.9,138.38,138.31,14.7999]
[1740587823733,82.9,138.38,138.32,0.28432314]
[1740587824038,82.9,138.42,138.36,0.42648471]
[1740587824242,82.9,138.44,138.37,0.14216157]
[1740587824413,82.9,138.44,138.4,20.0]
[1740587824628,83.622,138.49,138.41,0.42648471]
[1740587824823,82.9,138.49,138.42,0.14216157]
[1740587825035,9.79718286,138.5,138.45,20.0]
[1740587825226,3.64168286,138.5,138.45,20.0]
[1740587825729,89.2201,138.54,138.46,27.64828471]
[1740587825933,89.9419,138.54,138.46,27.2218]
[1740587826107,82.9,138.56,138.48,0.14216157]
[1740587826309,7.3619,138.58,138.51,0.42648471]
[1740587826636,6.6403,138.58,138.52,20.0]
[1740587826803,82.9,138.6,138.52,20.0]
[1740587827735,82.9,138.6,138.53,0.42648471]
[1740587828235,83.6215,138.6,138.52,27.56]
[1740587828546,82.9,138.6,138.53,0.42648471]
[1740587829116,83.6215,138.6,138.53,0.42648471]
[1740587829336,103.44415181,138.59,138.52,27.56]
[1740587829536,103.44415181,138.59,138.52,7.56]
[1740587829707,82.9,138.59,138.52,7.56]
[1740587830024,83.6215,138.59,138.52,7.56]
[1740587830233,82.9,138.59,138.53,0.42648471]
[1740587830445,84.79445986,138.58,138.5,0.42648471]
[1740587830763,0.063,138.61,138.53,0.42648471]
[1740587830949,0.063,138.61,138.57,0.42648471]
[1740587831138,0.063,138.61,138.54,7.62]
[1740587831443,0.063,138.61,138.58,20.0]
[1740587832010,0.063,138.61,138.59,0.42648471]
[1740587832207,0.063,138.61,138.6,0.14216157]
[1740587832614,0.063,138.61,138.59,8.04648471]
[1740587832814,0.063,138.61,138.6,0.14216157]
[1740587833128,0.063,138.61,138.6,0.42648471]
[1740587833533,0.063,138.61,138.6,0.56864628]
[1740587833715,0.063,138.61,138.6,26.43329514]
[1740587834334,0.063,138.62,138.61,0.56864628]
[1740587834527,0.7209,138.71,138.64,0.42648471]
[1740587834722,82.963,138.72,138.64,8.04648471]
[1740587834919,0.7839,138.7,138.64,7.62]
[1740587835119,2.5863,138.7,138.64,7.62]
[1740587835743,1.89328302,138.69,138.6,136.8]
[1740587836040,1.89328302,138.69,138.63,20.0]
[1740587836041,82.9,138.69,138.63,20.0]
[1740587836245,0.7839,138.7,138.64,0.42648471]
[1740587836425,0.7839,138.7,138.67,20.0]
[1740587837227,82.9,138.69,138.61,8.02648471]
[1740587837432,82.9,138.68,138.61,8.02648471]
[1740587837815,0.7211,138.67,138.64,20.0]
[1740587838031,82.9,138.68,138.64,20.0]
[1740587838347,82.9,138.68,138.65,0.42648471]
[1740587838645,82.9,138.68,138.66,7.6]
[1740587838850,0.063,138.7,138.69,20.0]
[1740587840470,0.063,138.7,138.66,7.6]
[1740587840671,0.063,138.7,138.69,20.0]
[1740587840967,0.063,138.7,138.69,20.56864628]
[1740587841168,0.063,138.7,138.69,39.21829514]
[1740587841372,0.063,138.7,138.69,20.42648471]
[1740587841565,0.063,138.7,138.69,20.56864628]
[1740587841748,0.063,138.7,138.69,39.21829514]
[1740587841943,0.063,138.7,138.69,46.42859514]
[1740587842542,0.063,138.7,138.69,128.82859514]
[1740587843072,0.063,138.7,138.69,102.82648471]
[1740587843248,0.063,138.7,138.69,102.96864628]
[1740587843757,0.063,138.7,138.69,131.34089514]
[1740587843970,0.063,138.7,138.69,269.14089514]
[1740587844379,0.063,138.7,138.69,267.14089514]
[1740587844873,0.063,138.7,138.69,102.96864628]
[1740587845175,0.063,138.7,138.69,128.82859514]
[1740587845341,0.063,138.7,138.69,267.62859514]
[1740587845761,0.063,138.72,138.7,21.21829514]
[1740587845973,0.063,138.72,138.71,34.00749514]
[1740587846175,0.063,138.75,138.74,2.56864628]
[1740587846347,0.03,138.82,138.76,40.21829514]
[1740587846553,0.03,138.82,138.76,47.81829514]
[1740587846952,0.03,138.82,138.76,46.81829514]
[1740587847273,0.03,138.82,138.76,28.16864628]
[1740587847479,0.7204,138.81,138.76,27.6]
[1740587847655,0.7205,138.79,138.76,20.0]
[1740587847863,82.9,138.78,138.76,20.0]
[1740587848268,83.6205,138.78,138.76,20.0]
[1740587848575,83.6205,138.78,138.73,133.62]
[1740587848781,83.6205,138.78,138.76,20.0]
[1740587848962,83.6205,138.78,138.73,133.62]
[1740587849477,82.9,138.76,138.68,7.58]
[1740587849779,82.9,138.76,138.72,20.0]
[1740587849979,7.1519,138.78,138.72,20.0]
[1740587850175,82.9,138.79,138.74,20.0]
[1740587850392,83.6205,138.79,138.74,20.0]
[1740587850961,82.9,138.79,138.75,0.42648471]
[1740587851183,82.93,138.82,138.76,19.21829514]
[1740587851480,0.03,138.82,138.76,101.61829514]
[1740587851780,0.03,138.82,138.76,82.96864628]
[1740587851950,0.03,138.82,138.76,90.17524628]
[1740587852281,0.03,138.82,138.76,31.04415654]
[1740587852573,0.03,138.82,138.76,30.04415654]
[1740587853282,0.03,138.82,138.76,7.63308471]
[1740587853575,82.9,138.81,138.72,14.8087]
[1740587853778,82.9,138.76,138.67,1.0]
[1740587853958,83.6206,138.76,138.66,7.2118]
[1740587854366,82.9,138.76,138.66,26.2415]
[1740587854573,82.9,138.76,138.67,19.21829514]
[1740587854890,0.7206,138.76,138.66,7.2118]
[1740587855283,0.7206,138.76,138.7,20.14216157]
[1740587855480,89.4808,138.77,138.72,0.14216157]
[1740587856081,89.4808,138.77,138.74,20.0]
[1740587856467,82.9,138.76,138.69,7.62]
[1740587856790,82.9,138.75,138.7,20.0]
[1740587857112,82.9,138.75,138.67,7.2112]
[1740587857113,1.89265051,138.74,138.67,7.2112]
[1740587857268,1.89265051,138.74,138.7,20.0]
[1740587857468,1.89265051,138.74,138.66,0.14216157]
[1740587857669,82.9,138.73,138.66,7.63818471]
[1740587858120,83.6208,138.73,138.69,20.0]
[1740587858289,82.9,138.72,138.69,20.0]
[1740587858487,82.9,138.72,138.65,148.4123]
[1740587858686,2.61368474,138.73,138.68,20.0]
[1740587858687,84.79302291,138.71,138.68,20.0]
[1740587858884,82.9,138.7,138.62,14.8438]
[1740587859088,82.9,138.69,138.62,14.8438]
[1740587859280,82.9,138.69,138.65,20.0]
[1740587859475,82.9,138.68,138.65,20.0]
[1740587859677,82.9,138.68,138.62,14.8438]
[1740587859892,82.9,138.67,138.62,7.63]
[1740587860398,83.6211,138.67,138.62,7.63]
[1740587860791,82.9,138.66,138.62,0.03]
[1740587861177,82.9,138.65,138.62,0.03]
[1740587861811,82.9,138.65,138.63,20.0]
[1740587862311,83.6212,138.65,138.63,20.0]
[1740587862513,82.9,138.64,138.62,0.03]
[1740587862675,6.2066,138.68,138.65,20.0]
[1740587862877,82.9,138.69,138.65,20.0]
[1740587863087,82.9,138.71,138.66,0.14216157]
[1740587863482,82.9,138.71,138.65,20.0]
[1740587864101,82.9,138.71,138.65,27.2121]
[1740587864885,82.9,138.7,138.64,20.0]
[1740587865905,89.5627,138.73,138.68,0.14216157]
[1740587866113,82.93,138.77,138.72,0.14216157]
[1740587866297,82.93,138.77,138.73,20.0]
[1740587866611,83.6506,138.77,138.73,20.0]
[1740587866787,82.93,138.77,138.73,20.0]
[1740587866983,83.6506,138.77,138.73,20.0]
[1740587867384,83.6506,138.77,138.71,20.0]
[1740587867609,83.6506,138.77,138.72,20.0]
[1740587867823,83.6506,138.77,138.67,82.4]
[1740587868135,101.54964886,138.76,138.66,7.62]
[1740587868303,18.64964886,138.74,138.66,7.62]
[1740587868499,18.64964886,138.74,138.63,0.03]
[1740587868500,6.28852314,138.71,138.63,0.03]
[1740587868800,82.9,138.73,138.67,20.0]
[1740587869002,89.4728,138.75,138.68,0.42648471]
[1740587869605,89.4728,138.75,138.67,102.4]
[1740587869807,89.4728,138.75,138.68,0.14216157]
[1740587870327,0.7207,138.74,138.67,102.4]
[1740587871427,101.54964886,138.73,138.67,20.0]
[1740587871604,103.44238453,138.73,138.67,20.0]
[1740587872127,82.9,138.73,138.67,20.0]
[1740587872310,82.9,138.73,138.68,0.42648471]
[1740587872633,82.9,138.73,138.68,20.42648471]
[1740587872921,83.6208,138.73,138.65,7.2124]
[1740587873150,83.6208,138.73,138.66,0.14216157]
[1740587873627,83.6208,138.73,138.68,20.0]
[1740587874500,1.89282299,138.72,138.64,90.06]
[1740587874806,82.9,138.72,138.65,0.14216157]
[1740587875118,7.67,138.77,138.69,18.933972]
[1740587875119,0.03,138.77,138.69,18.933972]
[1740587875433,0.03,138.77,138.73,20.0]
[1740587876837,0.03,138.77,138.74,0.42648471]
[1740587877731,0.03,138.77,138.74,0.14216157]
[1740587878035,0.03,138.77,138.76,39.21829514]
[1740587878442,0.03,138.77,138.76,46.83829514]
[1740587878637,0.03,138.82,138.8,0.14216157]
[1740587878940,0.03,138.82,138.81,46.83829514]
[1740587880241,0.063,138.84,138.83,0.56864628]
[1740587880412,0.063,138.84,138.83,240.41829514]
[1740587880611,0.063,138.84,138.83,246.62129514]
[1740587880814,0.063,138.84,138.83,247.62129514]
[1740587881346,0.063,138.84,138.83,251.19742229]
[1740587881635,0.063,138.84,138.83,250.19742229]
[1740587881939,0.063,138.84,138.83,90.17164628]
[1740587882447,0.063,138.84,138.83,82.68432314]
[1740587882621,0.063,138.84,138.81,144.42]
[1740587882622,0.063,138.84,138.81,7.6]
[1740587883166,0.063,138.84,138.83,20.0]
[1740587883322,0.063,138.84,138.77,7.6]
[1740587883527,0.063,138.84,138.8,20.0]
[1740587883841,0.063,138.84,138.77,7.6]
[1740587884336,0.063,138.84,138.8,20.0]
[1740587884542,82.9,138.83,138.76,7.6]
[1740587884714,82.9,138.82,138.76,7.6]
[1740587884922,82.9,138.82,138.77,0.42648471]
[1740587885119,82.9,138.82,138.76,7.6]
[1740587885639,82.9,138.82,138.77,0.42648471]
[1740587886022,0.063,138.84,138.8,20.14216157]
[1740587886344,0.063,138.84,138.83,20.0]
[1740587886533,0.063,138.84,138.83,20.42648471]
[1740587886934,0.063,138.84,138.83,20.0]
[1740587887130,0.063,138.84,138.83,20.42648471]
[1740587888053,0.063,138.84,138.83,20.0]
[1740587888545,0.063,138.84,138.83,128.82129514]
[1740587888927,0.063,138.84,138.83,110.17164628]
[1740587889228,0.063,138.84,138.83,129.82129514]
[1740587889442,0.063,138.86,138.85,19.21829514]
[1740587889943,0.03,138.91,138.89,0.56864628]
[1740587890126,0.03,138.91,138.9,15.08372314]
[1740587890433,0.03,138.91,138.9,7.74216157]
[1740587891248,0.03,138.91,138.88,82.4]
[1740587891421,0.03,138.91,138.89,0.14216157]
[1740587891624,0.03,138.91,138.9,20.0]
[1740587892952,0.03,138.91,138.87,7.48512314]
[1740587893259,0.03,138.91,138.86,14.8013]
[1740587893567,0.03,138.91,138.88,0.14216157]
[1740587893765,0.03,138.91,138.9,0.14216157]
[1740587894263,0.03,138.91,138.9,7.62588471]
[1740587894547,0.03,138.91,138.9,7.76804628]
[1740587894757,0.03,138.91,138.9,26.41769514]
[1740587894955,0.03,138.96,138.94,0.56864628]
[1740587895138,0.03,138.96,138.94,90.54864628]
[1740587895759,5.7403,139.02,138.97,20.0]
[1740587895964,6.4596,139.02,138.97,20.0]
[1740587896258,102.26894886,139.01,138.92,7.58]
[1740587896422,104.15784022,139.01,138.95,20.0]
[1740587896621,18.64964886,138.99,138.92,7.58]
[1740587896973,18.64964886,138.97,138.92,7.58]
[1740587897140,1.88974333,138.97,138.88,82.4]
[1740587897463,82.9,138.98,138.91,20.0]
[1740587897667,18.64964886,138.95,138.87,7.6]
[1740587897823,82.9,138.97,138.9,20.0]
[1740587898027,82.9,138.96,138.91,0.14216157]
[1740587898258,83.6196,138.96,138.92,20.0]
[1740587898840,83.6196,138.96,138.91,20.0]
[1740587899041,82.9,138.95,138.88,0.14216157]
[1740587899355,6.4839,138.93,138.87,7.6]
[1740587899549,82.9,138.92,138.87,7.6]
[1740587899850,82.9,138.92,138.84,133.46]